bitfinex/quotes_ETHUSD_20241022
["timestamp","ask_amount","ask_price","bid_price","bid_amount"]
[1729626610805,1.66816258,2630.2,2629.7,4.57878]
[1729626611005,1.66816258,2630.1,2629.7,0.7761]
[1729626611248,1.66816258,2630.0,2629.5,3.80291]
[1729626611541,1.66816258,2630.1,2629.5,5.47107258]
[1729626612107,1.66816258,2630.0,2629.4,5.37101567]
[1729626612311,1.66816258,2630.0,2629.5,0.98412981]
[1729626612537,1.66816258,2630.2,2629.5,5.47115258]
[1729626612725,1.66816258,2630.2,2629.5,5.47108258]
[1729626613569,1.66816258,2630.1,2629.4,10.03920825]
[1729626613739,1.66816258,2630.1,2629.5,0.98410213]
[1729626613926,1.66816258,2629.9,2629.4,0.7761]
[1729626614132,1.66816258,2630.1,2629.4,6.24734258]
[1729626614371,1.66816258,2630.1,2629.5,5.47115258]
[1729626614667,0.04572287,2630.0,2629.5,5.47109258]
[1729626614868,0.04572287,2630.0,2629.7,3.8027]
[1729626615231,1.66816258,2630.3,2629.7,3.8027]
[1729626615736,1.71386508,2630.2,2629.7,3.8027]
[1729626617783,1.71386508,2630.2,2629.6,4.62943]
[1729626617926,1.66816258,2630.1,2629.6,4.62943]
[1729626618274,0.04563534,2630.0,2629.6,4.62943]
[1729626619384,0.04563534,2630.0,2629.8,0.7673]
[1729626619674,1.66816258,2630.2,2629.8,0.7673]
[1729626619834,0.045662,2629.9,2629.8,0.7673]
[1729626620035,1.66816258,2630.3,2629.8,0.7673]
[1729626620264,0.04567293,2629.9,2629.8,0.7673]
[1729626620775,1.66816258,2630.2,2629.8,0.7673]
[1729626620955,0.04563112,2630.1,2629.8,0.7673]
[1729626621680,1.7137937,2630.1,2629.5,4.59468567]
[1729626621842,1.7137937,2630.1,2629.5,4.61657]
[1729626622479,1.7137937,2630.1,2629.5,8.4195]
[1729626622780,1.7137937,2630.1,2629.6,3.80284]
[1729626622945,0.04563112,2630.1,2629.6,3.80284]
[1729626623354,0.04563112,2630.1,2630.0,0.8137]
[1729626623555,1.66816258,2630.4,2630.0,0.8137]
[1729626623741,6.81098,2630.9,2630.0,0.8137]
[1729626623742,0.04563916,2630.3,2630.0,0.8137]
[1729626623945,3.80147,2630.6,2630.0,0.8137]
[1729626624166,0.04566006,2630.5,2630.0,4.61597]
[1729626624800,0.04566006,2630.5,2630.0,0.81276208]
[1729626624801,3.84729006,2630.5,2630.0,0.81276208]
[1729626624982,3.84729006,2630.5,2629.7,4.59450567]
[1729626624983,1.66816258,2630.1,2629.7,4.59450567]
[1729626625286,1.66816258,2630.0,2629.6,4.59460567]
[1729626625583,1.71372961,2629.9,2629.5,4.59468567]
[1729626625757,1.71372961,2629.9,2629.4,4.59493567]
[1729626625958,1.66816258,2629.8,2629.5,0.98634685]
[1729626626159,0.04556152,2629.7,2629.3,4.59502567]
[1729626626483,3.80236,2630.0,2629.4,0.98668786]
[1729626626647,1.66816258,2629.9,2629.3,3.80321]
[1729626626848,1.71378033,2629.9,2629.3,5.47137258]
[1729626627161,1.71378033,2629.9,2629.4,0.98662044]
[1729626627365,1.71378033,2629.9,2629.3,5.47137258]
[1729626627748,1.71378033,2629.9,2629.4,1.8149059]
[1729626628080,1.71378033,2629.9,2629.4,4.63189]
[1729626628281,1.71378033,2629.9,2629.4,0.8288]
[1729626628483,1.66816258,2629.8,2629.4,0.8288]
[1729626628859,0.04525957,2629.7,2629.4,0.8288]
[1729626629247,1.66816258,2629.8,2629.4,0.8288]
[1729626629450,0.04524239,2629.6,2629.4,0.8288]
[1729626629646,1.66816258,2629.6,2629.3,3.80319]
[1729626630003,1.71337685,2629.5,2629.2,0.8288]
[1729626630290,0.04521427,2629.5,2629.3,4.78946713]
[1729626630582,1.66816258,2629.7,2629.3,3.80328]
[1729626630882,0.04524136,2629.6,2629.3,3.80328]
[1729626631952,0.09688563,2629.6,2629.3,3.80328]
[1729626633435,1.76504821,2629.6,2629.2,4.63222]
[1729626633731,0.09688563,2629.6,2629.2,4.63222]
[1729626633894,1.71980685,2629.6,2629.2,4.63222]
[1729626634097,0.09671589,2629.5,2629.3,3.80328]
[1729626634432,1.66816258,2629.7,2629.3,3.80328]
[1729626634621,0.09668973,2629.4,2629.3,3.80328]
[1729626634927,1.66816258,2629.7,2629.2,4.63221]
[1729626635429,0.09674204,2629.6,2629.2,4.63221]
[1729626636142,0.09674204,2629.6,2629.2,6.30037258]
[1729626636346,0.09674204,2629.6,2629.3,5.47138258]
[1729626636510,1.66816258,2629.9,2629.3,3.80322]
[1729626636511,1.66816258,2629.8,2629.3,3.80322]
[1729626637125,0.09668677,2629.7,2629.3,3.80322]
[1729626637325,1.66816258,2629.8,2629.3,3.80322]
[1729626637723,0.09668677,2629.7,2629.3,3.80322]
[1729626637940,1.66816258,2629.8,2629.3,3.80322]
[1729626638244,0.09668677,2629.7,2629.3,3.80322]
[1729626638614,1.66816258,2629.8,2629.3,3.80322]
[1729626638827,0.09684839,2629.7,2629.3,3.80322]
[1729626639147,1.66816258,2629.8,2629.3,3.80322]
[1729626639453,1.76501097,2629.7,2629.2,4.63222]
[1729626639621,0.09684839,2629.7,2629.2,4.63222]
[1729626641410,0.09684839,2629.7,2629.3,3.80321]
[1729626641611,1.66816258,2629.8,2629.3,3.80321]
[1729626641921,0.09684839,2629.7,2629.3,3.80321]
[1729626642326,0.09681773,2629.6,2629.3,3.80321]
[1729626642847,0.09679158,2629.5,2629.3,3.80321]
[1729626643214,1.66816258,2629.8,2629.3,3.80321]
[1729626643617,1.76500647,2629.7,2629.2,4.63223]
[1729626644023,0.09684389,2629.7,2629.2,4.63223]
[1729626644764,1.76500647,2629.7,2629.2,4.63223]
[1729626645449,1.76500647,2629.7,2628.9,4.59558567]
[1729626645450,1.66816258,2629.3,2628.9,4.59558567]
[1729626645658,3.80302,2629.5,2629.0,3.8037]
[1729626645659,1.66816258,2629.5,2629.0,3.8037]
[1729626645837,0.09532378,2629.2,2629.0,3.8037]
[1729626646164,5.47116258,2629.5,2628.9,5.47202258]
[1729626646511,0.09541681,2629.4,2628.9,9.27588258]
[1729626646724,0.09541681,2629.4,2629.1,5.47167258]
[1729626646937,0.09541681,2629.4,2629.1,0.7761]
[1729626647277,0.09528732,2629.3,2629.1,0.7761]
[1729626647424,0.09528732,2629.3,2629.1,4.57961]
[1729626647748,1.66816258,2629.6,2629.1,4.57961]
[1729626647910,0.09524795,2629.2,2629.1,4.57961]
[1729626648623,0.09524795,2629.2,2629.1,0.7761]
[1729626648831,5.47104258,2629.6,2629.1,0.7761]
[1729626649245,0.09532642,2629.5,2629.1,0.7761]
[1729626650013,0.09532642,2629.5,2629.1,6.24780258]
[1729626650238,5.47090258,2629.7,2629.1,4.57964]
[1729626650615,0.09539541,2629.6,2629.1,4.57964]
[1729626650809,5.56641799,2629.6,2629.1,4.57964]
[1729626651737,0.09539541,2629.6,2629.1,4.57964]
[1729626652043,1.76355799,2629.6,2629.1,4.57964]
[1729626654549,0.09539541,2629.6,2629.2,3.80337]
[1729626654732,0.09539541,2629.6,2629.1,10.05121258]
[1729626654928,5.47075258,2629.8,2629.1,10.05121258]
[1729626655134,0.09525029,2629.5,2629.1,10.05123258]
[1729626655454,0.09522413,2629.4,2629.1,10.05123258]
[1729626655652,0.09522413,2629.4,2629.1,4.57955]
[1729626655853,5.47089258,2629.7,2629.1,4.57955]
[1729626656223,0.09527644,2629.6,2629.1,4.57955]
[1729626656932,0.09527644,2629.6,2629.1,6.24771258]
[1729626657861,0.09527644,2629.6,2629.1,4.57955]
[1729626658161,0.09527644,2629.6,2629.1,6.24771258]
[1729626658751,0.09527644,2629.6,2629.1,10.05121258]
[1729626658954,0.09527644,2629.6,2629.2,3.80341]
[1729626659268,3.80276,2629.7,2629.1,10.05117258]
[1729626659464,0.09525029,2629.5,2629.1,10.05118258]
[1729626659630,0.09527644,2629.6,2629.1,10.05118258]
[1729626660066,0.09527644,2629.6,2629.1,6.24771258]
[1729626660264,0.09527644,2629.6,2629.1,4.57955]
[1729626660448,0.09527644,2629.6,2629.1,10.05122258]
[1729626660764,0.09527644,2629.6,2629.2,3.80341]
[1729626662345,0.09527644,2629.6,2629.1,4.57957]
[1729626662671,0.09527644,2629.6,2629.2,3.80337]
[1729626663033,0.09527644,2629.6,2629.1,4.57954]
[1729626663463,0.09527644,2629.6,2629.2,3.80343]
[1729626664649,0.09527644,2629.6,2629.1,0.7761]
[1729626664833,0.09527644,2629.6,2629.2,3.80342]
[1729626665262,0.09527644,2629.6,2629.1,4.57958]
[1729626665827,0.09527644,2629.6,2629.2,3.8034]
[1729626666459,0.09527644,2629.6,2629.3,3.80328]
[1729626666878,0.17722228,2630.8,2629.3,3.80328]
[1729626666879,3.80179,2630.4,2629.4,3.80308]
[1729626667079,0.09525029,2629.5,2629.4,3.80308]
[1729626667383,3.80213,2630.2,2629.6,3.80285]
[1729626667534,3.80217,2630.1,2629.6,3.80285]
[1729626668067,5.47033258,2630.1,2629.5,3.80299]
[1729626668574,1.66816258,2630.1,2629.6,3.80285]
[1729626668779,3.802,2630.2,2629.6,3.80285]
[1729626668780,9.27223258,2630.2,2629.6,3.80285]
[1729626668937,5.47032258,2630.1,2629.6,3.80285]
[1729626671458,1.66816258,2630.1,2629.6,3.80285]
[1729626671663,3.8018,2630.4,2629.8,3.8025]
[1729626671835,6.80152,2630.6,2629.8,3.8025]
[1729626671836,1.66816258,2630.2,2629.8,7.60499]
[1729626672873,7.60357,2630.4,2629.8,3.80249]
[1729626673238,1.66816258,2630.2,2629.8,3.80249]
[1729626674649,0.09563192,2630.1,2629.8,3.80249]
[1729626675480,0.09563192,2630.1,2630.0,1.66816258]
[1729626675690,0.09563192,2630.1,2630.0,6.26514258]
[1729626675986,1.66816258,2630.4,2630.0,4.59698]
[1729626676350,0.09584264,2630.3,2630.0,4.59698]
[1729626676558,0.09584264,2630.3,2630.1,3.80213]
[1729626676957,1.66816258,2630.5,2630.1,3.80213]
[1729626677158,0.0948765,2630.2,2630.1,3.80213]
[1729626677365,1.66816258,2630.8,2630.4,3.80168]
[1729626677564,5.46928258,2630.8,2630.4,0.7947]
[1729626677875,5.56445975,2630.7,2630.4,0.7947]
[1729626678058,1.66816258,2630.6,2630.4,0.7947]
[1729626678263,0.09507577,2630.5,2630.4,0.7947]
[1729626678952,1.66816258,2630.7,2630.4,0.7947]
[1729626679163,0.09507577,2630.5,2630.4,0.7947]
[1729626679361,1.66816258,2630.7,2630.4,0.7947]
[1729626679663,3.80106,2630.9,2630.4,0.7947]
[1729626679973,1.66816258,2630.7,2630.4,4.59639]
[1729626680366,0.09516805,2630.6,2630.4,4.59639]
[1729626682882,0.09516805,2630.6,2630.4,0.7947]
[1729626686473,0.09516805,2630.6,2630.3,3.80183]
[1729626687758,0.09516805,2630.6,2630.3,3.80177]
[1729626687958,0.09516805,2630.6,2630.3,7.60355]
[1729626688492,0.09516805,2630.6,2630.3,7.60354]
[1729626689911,0.09516805,2630.6,2630.3,3.80177]
[1729626690474,1.66816258,2630.4,2629.8,3.80257]
[1729626690778,1.66816258,2630.4,2629.8,3.80249]
[1729626690779,1.66816258,2630.2,2629.8,3.80249]
[1729626691024,1.66816258,2630.2,2629.8,3.80257]
[1729626691178,1.66816258,2630.0,2629.7,0.7743]
[1729626691372,1.66816258,2630.0,2629.5,4.57728]
[1729626691373,3.80229,2630.0,2629.5,4.57728]
[1729626691692,3.80229,2630.0,2629.5,6.24539258]
[1729626691693,0.09507017,2629.9,2629.5,6.24539258]
[1729626692103,0.09507017,2629.9,2629.6,1.66816258]
[1729626692284,0.09507017,2629.9,2629.5,10.04832258]
[1729626692489,0.09507017,2629.9,2629.7,3.80271]
[1729626692894,3.80219,2630.1,2629.6,5.47099258]
[1729626693089,0.09475532,2629.8,2629.6,5.47099258]
[1729626693302,5.47024258,2630.2,2629.7,3.80267]
[1729626693813,1.66816258,2629.9,2629.6,3.80283]
[1729626694016,1.66816258,2629.7,2629.3,0.7743]
[1729626694225,1.66816258,2629.5,2629.2,3.80335]
[1729626694379,1.66816258,2629.5,2629.1,5.36967567]
[1729626694584,3.80281,2629.7,2629.1,5.36967567]
[1729626694906,3.80278,2629.7,2629.2,3.80341]
[1729626695905,1.66816258,2629.6,2629.2,3.80341]
[1729626696127,5.47094258,2629.7,2629.2,3.80341]
[1729626697284,5.47086258,2629.8,2629.3,3.80328]
[1729626697487,9.27356258,2629.8,2629.2,9.27490258]
[1729626697688,1.66816258,2629.7,2629.2,9.27490258]
[1729626697902,1.66816258,2629.7,2629.2,3.80333]
[1729626698111,1.66816258,2629.7,2629.2,7.60669]
[1729626698316,1.66816258,2629.7,2629.2,3.80333]
[1729626698588,5.47089258,2629.7,2629.2,5.47157258]
[1729626698801,5.47089258,2629.7,2629.2,3.80341]
[1729626699334,1.66816258,2629.7,2629.2,3.80341]
[1729626699501,1.66816258,2629.7,2629.2,5.47150258]
[1729626699701,5.47091258,2629.7,2629.2,3.80334]
[1729626700016,1.66816258,2629.6,2629.2,3.80334]
[1729626702906,5.47091258,2629.7,2629.3,3.80327]
[1729626703107,1.66816258,2629.7,2629.3,3.80327]
[1729626703291,9.27338258,2629.8,2629.3,3.80327]
[1729626703498,5.47088258,2629.7,2629.2,7.6067]
[1729626704397,5.47088258,2629.7,2629.2,3.80334]
[1729626704618,5.47088258,2629.7,2629.3,3.80328]
[1729626704826,0.09449034,2629.6,2629.3,3.80328]
[1729626705509,0.09449034,2629.6,2629.4,3.80312]
[1729626705708,5.47074258,2629.8,2629.3,3.80328]
[1729626705928,0.09438358,2629.5,2629.3,3.80328]
[1729626706131,5.47074258,2629.8,2629.3,3.80328]
[1729626706431,9.27340258,2629.8,2629.3,3.80328]
[1729626706636,1.76277525,2629.7,2629.3,3.80328]
[1729626707144,1.76277525,2629.7,2629.3,3.8032]
[1729626709627,0.09461267,2629.7,2629.3,3.8032]
[1729626709939,1.66816258,2629.7,2629.3,3.8032]
[1729626710097,0.09442295,2629.6,2629.3,3.8032]
[1729626717581,1.66816258,2629.4,2629.1,4.57777]
[1729626717847,3.89738295,2629.6,2628.9,3.80378]
[1729626717848,1.66816258,2629.2,2628.9,4.62827]
[1729626718156,1.66816258,2629.2,2628.8,3.80395]
[1729626718157,1.66816258,2629.0,2628.8,3.80395]
[1729626718446,0.09118265,2628.9,2628.7,4.62855]
[1729626718661,5.47160258,2629.2,2628.7,8.43262]
[1729626718814,1.75917284,2629.1,2628.7,8.43262]
[1729626719412,1.75917284,2629.1,2628.8,3.80395]
[1729626719641,0.09101026,2629.1,2629.0,5.47188258]
[1729626719854,1.66816258,2629.6,2629.0,6.22298258]
[1729626720047,0.09078898,2629.5,2629.2,3.80343]
[1729626720618,3.80237,2630.0,2629.4,3.80314]
[1729626720619,1.66816258,2629.6,2629.4,3.80314]
[1729626720819,0.09077374,2629.5,2629.3,3.80321]
[1729626722063,0.09077374,2629.5,2629.4,4.56594]
[1729626722353,1.66816258,2629.7,2629.4,0.7628]
[1729626722559,0.09096093,2629.5,2629.4,0.7628]
[1729626722719,1.66816258,2629.6,2629.4,0.7628]
[1729626722922,0.09096093,2629.5,2629.4,4.56593]
[1729626723354,0.09096093,2629.5,2629.4,0.7628]
[1729626723538,1.66816258,2629.7,2629.4,0.7628]
[1729626723855,1.66816258,2629.6,2629.4,0.7628]
[1729626724358,0.09100058,2629.5,2629.4,0.7628]
[1729626725241,5.47089258,2629.7,2629.4,0.7628]
[1729626725757,0.08799279,2629.6,2629.4,0.7628]
[1729626727545,1.75615537,2629.6,2629.3,3.80327]
[1729626727852,1.75615537,2629.6,2629.2,4.56782]
[1729626728825,1.66816258,2629.4,2629.1,3.80345]
[1729626729049,1.66816258,2629.4,2629.0,4.56812]
[1729626729228,0.0879607,2629.3,2629.0,4.56812]
[1729626729569,0.0879607,2629.3,2628.7,4.59336]
[1729626729570,1.66816258,2629.1,2628.7,4.59336]
[1729626729930,1.66816258,2629.1,2628.6,3.80422]
[1729626730183,5.47166258,2629.2,2628.6,1.66816258]
[1729626730324,5.47166258,2629.2,2628.8,0.7796]
[1729626730325,3.8035,2629.2,2628.8,0.7796]
[1729626730620,0.08810781,2629.1,2628.8,0.7796]
[1729626730821,0.08810781,2629.1,2628.9,5.47201258]
[1729626731073,1.66816258,2629.5,2628.9,3.80387]
[1729626731238,0.08805759,2629.4,2629.0,3.80362]
[1729626731441,1.75622017,2629.4,2629.0,3.80362]
[1729626732130,5.55937017,2629.4,2629.0,3.80362]
[1729626733457,1.75622017,2629.4,2629.0,3.80362]
[1729626733862,1.66816258,2629.3,2629.0,3.80362]
[1729626734068,0.08507465,2629.2,2629.0,3.80362]
[1729626734362,1.66816258,2629.4,2629.0,3.80362]
[1729626734561,0.0850485,2629.1,2629.0,3.80362]
[1729626734767,1.66816258,2629.4,2629.0,3.80362]
[1729626734966,0.0850485,2629.1,2629.0,3.80362]
[1729626735166,1.66816258,2629.4,2629.0,3.80362]
[1729626735371,0.0850485,2629.1,2629.0,3.80362]
[1729626735673,1.66816258,2629.4,2629.1,3.80358]
[1729626738349,1.66816258,2629.2,2628.9,3.80377]
[1729626739175,1.66816258,2629.2,2628.8,4.58355]
[1729626739386,1.66816258,2629.1,2628.8,3.80395]
[1729626739738,5.47168258,2629.2,2628.8,3.80391]
[1729626740374,1.66816258,2629.1,2628.8,3.80391]
[1729626740738,1.66816258,2629.2,2628.8,3.80391]
[1729626740937,5.47160258,2629.2,2628.8,3.80391]
[1729626741641,1.66816258,2629.1,2628.8,3.80391]
[1729626743459,1.66816258,2629.2,2628.9,3.80384]
[1729626743978,1.66816258,2629.1,2628.8,3.804]
[1729626744475,1.66816258,2629.1,2628.7,3.80415]
[1729626744476,5.47174258,2629.1,2628.7,3.80403]
[1729626744639,1.66816258,2628.8,2628.7,3.80403]
[1729626744846,1.66816258,2629.0,2628.8,3.80393]
[1729626745149,1.66816258,2629.0,2628.7,3.80403]
[1729626745150,5.47180258,2629.1,2628.7,3.80403]
[1729626745357,1.66816258,2628.8,2628.6,3.80428]
[1729626745561,1.66816258,2628.8,2628.6,3.80423]
[1729626745733,1.66816258,2628.9,2628.6,3.80422]
[1729626745940,1.66816258,2628.7,2628.6,3.80422]
[1729626746250,1.66816258,2628.8,2628.6,3.80422]
[1729626746448,1.66816258,2628.8,2628.5,3.80442]
[1729626747154,1.66816258,2628.6,2628.3,7.60923]
[1729626747356,3.80402,2628.8,2628.3,7.60923]
[1729626747357,1.66816258,2628.7,2628.4,3.80455]
[1729626747666,1.66816258,2628.6,2628.4,3.80455]
[1729626747865,1.66816258,2628.7,2628.4,3.80455]
[1729626749283,1.66816258,2628.7,2628.5,3.80444]
[1729626749441,0.08458263,2628.6,2628.5,3.80444]
[1729626750085,1.66816258,2628.8,2628.5,3.80444]
[1729626750247,1.75277138,2628.7,2628.5,3.80444]
[1729626751149,1.75277138,2628.7,2628.4,3.80458]
[1729626752044,0.0846088,2628.7,2628.4,3.80453]
[1729626752249,5.47218258,2628.8,2628.4,3.80453]
[1729626752547,0.0846088,2628.7,2628.4,3.80448]
[1729626752759,1.75277138,2628.7,2628.4,3.80448]
[1729626752964,1.66816258,2628.7,2628.4,3.80448]
[1729626753250,0.08458263,2628.6,2628.4,3.80448]
[1729626754268,5.47219258,2628.8,2628.4,3.80448]
[1729626754591,0.08442061,2628.7,2628.4,3.80448]
[1729626754902,5.47219258,2628.8,2628.4,3.80448]
[1729626755078,0.08442061,2628.7,2628.4,3.80448]
[1729626755265,5.47219258,2628.8,2628.4,3.80448]
[1729626755447,0.08442061,2628.7,2628.4,3.80448]
[1729626755650,5.47219258,2628.8,2628.4,3.80448]
[1729626755878,0.08442061,2628.7,2628.4,3.80448]
[1729626756060,5.47218258,2628.8,2628.4,3.80448]
[1729626756277,0.08442061,2628.7,2628.4,3.80448]
[1729626756477,5.47218258,2628.8,2628.4,3.80448]
[1729626756676,0.08442061,2628.7,2628.4,3.80448]
[1729626756888,5.47218258,2628.8,2628.4,3.80448]
[1729626757094,0.08442061,2628.7,2628.4,3.80448]
[1729626757266,5.47218258,2628.8,2628.4,3.80448]
[1729626757481,0.08442061,2628.7,2628.4,3.80448]
[1729626757690,5.47218258,2628.8,2628.4,7.60901]
[1729626758002,0.08442061,2628.7,2628.4,7.60901]
[1729626758500,0.08439444,2628.6,2628.4,7.60901]
[1729626758700,5.47218258,2628.8,2628.4,3.80448]
[1729626758910,0.08442061,2628.7,2628.5,3.80441]
[1729626759209,1.66816258,2628.8,2628.5,3.80441]
[1729626759806,0.08434444,2628.7,2628.4,3.80457]
[1729626760175,1.66816258,2628.8,2628.4,3.80457]
[1729626760483,1.66816258,2628.9,2628.5,3.80445]
[1729626760804,0.08437061,2628.8,2628.5,3.80445]
[1729626764212,0.08437061,2628.8,2628.6,0.7594]
[1729626768719,5.47205258,2628.9,2628.6,0.7594]
[1729626768921,0.08439301,2628.8,2628.6,0.7594]
[1729626770423,0.08439301,2628.8,2628.6,4.56368]
[1729626770720,5.47191258,2629.0,2628.6,4.56368]
[1729626771020,0.08443264,2628.9,2628.6,4.56368]
[1729626771919,1.75259522,2628.9,2628.6,4.56368]
[1729626772305,1.66816258,2628.8,2628.5,3.80435]
[1729626772501,0.08438031,2628.7,2628.4,4.56997]
[1729626772822,1.66816258,2628.8,2628.4,4.56997]
[1729626773018,0.08441525,2628.6,2628.4,4.56997]
[1729626773227,1.66816258,2628.8,2628.4,4.56997]
[1729626773427,0.08439926,2628.5,2628.4,4.56997]
[1729626773609,1.66816258,2628.8,2628.4,4.56997]
[1729626773794,0.08439926,2628.5,2628.4,4.56997]
[1729626773995,5.47204258,2628.9,2628.5,3.80437]
[1729626774321,1.66816258,2628.9,2628.4,4.56997]
[1729626774523,3.80402,2628.8,2628.4,4.56997]
[1729626775319,5.47205258,2628.9,2628.5,3.80437]
[1729626775525,3.80389,2628.9,2628.5,3.80437]
[1729626775723,5.47205258,2628.9,2628.5,3.80437]
[1729626777542,5.47191258,2629.0,2628.5,3.80437]
[1729626778035,3.80388,2628.9,2628.5,3.80437]
[1729626779535,0.08428602,2628.8,2628.5,3.80437]
[1729626780499,5.47191258,2629.0,2628.5,3.80437]
[1729626780703,0.08431219,2628.9,2628.5,3.80437]
[1729626781003,3.88819219,2628.9,2628.5,3.80437]
[1729626782706,0.08431219,2628.9,2628.5,3.80437]
[1729626783429,3.88818219,2628.9,2628.5,3.80437]
[1729626785459,0.08431219,2628.9,2628.5,3.80437]
[1729626786149,0.08431219,2628.9,2628.6,0.7549]
[1729626786809,0.08431219,2628.9,2628.6,4.55913]
[1729626787230,3.88818219,2628.9,2628.6,0.7549]
[1729626788050,0.08431219,2628.9,2628.6,0.7549]
[1729626788240,3.88820219,2628.9,2628.6,0.7549]
[1729626788754,0.08431219,2628.9,2628.6,4.5592]
[1729626789257,0.08431219,2628.9,2628.8,0.7642]
[1729626789615,5.47168258,2629.2,2628.8,0.7642]
[1729626789945,9.27520258,2629.2,2628.8,0.7642]
[1729626790113,1.74803496,2629.1,2628.8,0.7642]
[1729626790308,0.07987238,2629.1,2628.8,4.56814]
[1729626791548,1.74803496,2629.1,2628.8,0.7642]
[1729626792808,1.74803496,2629.1,2628.8,4.56814]
[1729626793323,5.55163496,2629.1,2628.8,0.7642]
[1729626793562,0.07987238,2629.1,2628.8,0.7642]
[1729626793711,0.07987238,2629.1,2628.9,3.80379]
[1729626793921,1.66816258,2629.2,2628.9,3.80379]
[1729626794122,1.74541394,2629.1,2628.8,5.36207425]
[1729626794353,1.74541394,2629.1,2628.9,0.98868517]
[1729626794555,1.74541394,2629.1,2628.8,4.56821]
[1729626794859,0.07725136,2629.1,2628.8,4.56821]
[1729626795353,0.07725136,2629.1,2628.9,0.98850412]
[1729626795558,5.47160258,2629.2,2628.8,4.56821]
[1729626795735,0.07465015,2629.0,2628.9,3.80386]
[1729626795923,1.66816258,2629.3,2628.9,3.80386]
[1729626796120,0.07470248,2629.2,2628.8,5.36205425]
[1729626796329,5.47156258,2629.3,2628.8,5.36205425]
[1729626796330,1.66816258,2629.3,2628.9,3.80386]
[1729626796533,0.07470248,2629.2,2629.0,4.5679]
[1729626796735,5.47130258,2629.4,2629.0,4.5679]
[1729626796963,1.74289122,2629.3,2629.0,4.5679]
[1729626797457,0.07472864,2629.3,2629.0,4.5679]
[1729626798265,1.74289122,2629.3,2629.0,4.5679]
[1729626798972,1.74289122,2629.3,2629.0,0.7642]
[1729626799283,1.74289122,2629.3,2629.0,4.56791]
[1729626799830,1.74289122,2629.3,2629.0,0.7642]
[1729626801365,0.07472864,2629.3,2629.0,4.56789]
[1729626801657,0.07472864,2629.3,2629.0,5.69213359]
[1729626802769,1.74289122,2629.3,2629.0,5.69213359]
[1729626802971,1.74289122,2629.3,2629.0,4.56789]
[1729626804081,0.07472864,2629.3,2629.0,0.7642]
[1729626804254,1.74289122,2629.3,2629.0,0.7642]
[1729626804953,0.07472864,2629.3,2629.0,0.7642]
[1729626805166,0.07472864,2629.3,2629.0,4.56789]
[1729626806191,1.74289122,2629.3,2629.0,0.7642]
[1729626806559,1.66816258,2629.2,2629.0,0.7642]
[1729626806760,0.07465595,2629.1,2629.0,4.56792]
[1729626807089,1.66816258,2629.4,2629.0,4.56792]
[1729626807288,0.07465595,2629.1,2629.0,4.56792]
[1729626807466,1.66816258,2629.3,2629.0,4.56792]
[1729626807990,0.07477621,2629.2,2629.0,4.56792]
[1729626808451,5.47131258,2629.4,2629.0,4.56792]
[1729626808786,1.66816258,2629.3,2629.0,4.56792]
[1729626808982,1.74296495,2629.3,2629.0,4.56792]
[1729626810876,0.07480237,2629.3,2629.0,4.56792]
[1729626811693,0.07480237,2629.3,2629.0,0.7642]
[1729626811893,0.07480237,2629.3,2629.1,3.80352]
[1729626812395,0.07480237,2629.3,2629.0,4.5679]
[1729626812599,0.07480237,2629.3,2629.1,3.80352]
[1729626813759,1.66816258,2629.4,2629.1,3.80352]
[1729626813959,0.07405915,2629.3,2629.1,3.80352]
[1729626814716,0.01,2630.2,2629.1,2.50530458]
[1729626815006,5.47015258,2630.2,2629.6,5.47097258]
[1729626815206,0.38239223,2630.3,2629.9,3.80233]
[1729626815575,4.18431223,2630.3,2629.9,3.80233]
[1729626816069,0.38239223,2630.3,2629.9,3.80233]
[1729626816270,0.38239223,2630.3,2629.9,7.60469]
[1729626816497,2.05055481,2630.3,2629.9,7.60469]
[1729626816700,2.05055481,2630.3,2629.9,7.60468]
[1729626817187,2.05055481,2630.3,2630.0,3.80225]
[1729626820242,2.05055481,2630.3,2629.8,3.80257]
[1729626820440,1.66816258,2629.9,2629.7,0.8182]
[1729626820733,1.66816258,2630.0,2629.7,4.62086]
[1729626821034,1.66816258,2630.0,2629.8,3.80256]
[1729626821195,1.66816258,2630.1,2629.8,3.80256]
[1729626821790,1.66816258,2630.2,2629.8,3.80256]
[1729626822028,1.66816258,2630.2,2629.9,3.80234]
[1729626823319,1.66816258,2630.1,2629.9,3.80234]
[1729626823503,1.66816258,2630.2,2629.9,3.80234]
[1729626823926,1.66816258,2630.2,2630.0,3.80225]
[1729626824726,0.06745324,2630.1,2630.0,3.80225]
[1729626826239,0.06745324,2630.1,2629.9,3.8024]
[1729626827096,0.06745324,2630.1,2629.8,0.462076]
[1729626827297,1.66816258,2629.9,2629.7,4.62088]
[1729626827497,1.66816258,2630.0,2629.7,4.62088]
[1729626827731,0.0669795,2629.8,2629.7,4.62088]
[1729626827933,0.06699987,2629.8,2629.7,4.62088]
[1729626828155,5.47029258,2630.1,2629.7,4.62088]
[1729626828523,0.067042,2630.0,2629.7,4.62088]
[1729626829230,0.067042,2630.0,2629.8,3.80256]
[1729626829565,4.18432223,2630.3,2629.8,3.80256]
[1729626829566,5.85248481,2630.3,2629.8,3.80256]
[1729626829747,5.85248481,2630.3,2629.9,3.80235]
[1729626830068,5.85248481,2630.3,2630.0,3.80225]
[1729626830069,2.05055481,2630.3,2630.0,3.80225]
[1729626835173,2.05055481,2630.3,2629.9,3.80235]
[1729626835390,5.47056258,2630.0,2629.5,3.8029]
[1729626835676,1.66816258,2629.6,2629.3,0.7854]
[1729626835973,3.80245,2629.9,2629.3,0.7854]
[1729626835974,1.66816258,2629.7,2629.3,0.7854]
[1729626836485,5.47075258,2629.8,2629.4,3.80314]
[1729626836641,5.47066258,2629.9,2629.3,6.25672258]
[1729626836846,1.66816258,2629.8,2629.4,3.80313]
[1729626837067,5.47073258,2629.8,2629.4,3.80313]
[1729626839765,0.06748808,2629.7,2629.4,3.80313]
[1729626840081,5.47073258,2629.8,2629.4,4.19602368]
[1729626840278,0.06746192,2629.6,2629.5,3.803]
[1729626840480,5.47058258,2629.9,2629.5,3.803]
[1729626841185,0.0673751,2629.8,2629.5,3.803]
[1729626843936,1.66816258,2629.6,2629.3,0.7854]
[1729626844230,1.66816258,2629.6,2628.9,4.5741]
[1729626844231,5.47136258,2629.4,2628.9,4.5741]
[1729626844622,0.0673767,2629.3,2628.9,4.5741]